[Event "Mitropa Cup Women 2022"]
[Site "Corte"]
[Date "2022.05.03"]
[Round "4.3"]
[White "Radikovic, Anamarija"]
[Black "Demeter, Dorina"]
[Result "1-0"]
[ECO "C84"]
[WhiteElo "2133"]
[BlackElo "2235"]
[Annotator "TA"]
[PlyCount "83"]
[EventDate "2022.04.30"]
[EventType "team-tourn"]
[EventCountry "FRA"]
[SourceTitle "playchess.com"]
[Source "ChessBase"]
[SourceQuality "1"]
[BlackTeam "Hungary"]
[BlackTeamCountry "HUN"]
[TimeControl "40/5400+30:1800+30"]

{[%evp 14,83,0,14,21,31,23,19,107,-18,-17,-33,110,100,118,101,156,40,32,-143,-133,-140,-141,-155,-161,-154,-148,-152,81,54,49,25,61,47,456,312,335,34,64,52,65,58,342,362,333,321,325,291,277,262,382,386,417,400,1056,1035,1107,1106,29980,29980,29980,29981,29981,29982,29983,29984,29988,29983,29983,29984,29993,29994]} 1. e4 {[%emt 0:00:01]} e5 {[%emt 0:00:14]} 2. Nf3 {[%emt 0:00:05]} Nc6 {[%emt 0:00:06]} 3. Bb5 {[%emt 0:00:03]} a6 {[%emt 0:00:24]} 4. Ba4 {[%emt 0:00:05]} Nf6 {[%emt 0:00:07]} 5. Nc3 {[%emt 0:00:04]} Be7 {[%emt 0:03:24]} 6. O-O {[%emt 0:00:15]} b5 {[%emt 0:02:30]} 7. Bb3 {[%emt 0:00:05]} d6 {[%emt 0:00:30]} 8. a4 $1 {[%emt 0:13:04][%cal Ba2a4,Ba4b5][%mdl 4] is currently scoring better than 8.Nd5.} Bg4 {[%emt 0:05:10] C84: Closed Ruy Lopez: Unusual White 6th moves.} 9. axb5 {[%emt 0:07:53]} Nd4 {[%emt 0:02:46] [#]} 10. Bd5 $146 {[%emt 0:04:24]} ({Predecessor:} 10. Bc4 Bxf3 11. gxf3 O-O 12. Nd5 Nh5 13. f4 Nxf4 14. bxa6 Bg5 15. Nxf4 Bxf4 16. h3 {½-½ (30) Braeuer,F (2428)-Amin,B (2683) Germany 2022}) 10... Qc8 {[%emt 0:09:05]} (10... Bxf3 $11 {remains equal.} 11. gxf3 Nxd5 12. Nxd5 Nxb5) 11. Bc6+ {[%emt 0:29:05]} (11. Bxa8 $16 Qxa8 12. d3 (12. bxa6 Nxe4 13. Nxe4 Qxe4 $18) (12. Rxa6 Qc8 $16)) 11... Kf8 $1 $11 {[%emt 0:01:12]} (11... Nxc6 12. bxc6 O-O 13. d4 $16) 12. Nd5 {[%emt 0:02:19]} Nxd5 {[%emt 0:15:03]} (12... Nxc6 $15 {keeps the upper hand.} 13. Nxf6 Bxf3 14. gxf3 Nd4) 13. Bxd5 $16 {[%emt 0:00:27]} (13. exd5 $2 Nxc6 14. dxc6 (14. bxc6 $2 e4 $19) 14... e4 $19) 13... Bxf3 {[%emt 0:01:40]} 14. gxf3 {[%emt 0:00:13]} Bg5 {[%emt 0:00:46]} (14... Rb8 $142) 15. f4 (15. Bxa8 Qh3 16. d3 (16. Ra3 $2 Bf4 17. Re1 Qxh2+ 18. Kf1 Qh1#) 16... Bxc1 17. Rxc1 h5 $19) (15. Kg2 $16 c6 16. bxc6) 15... Bxf4 $14 {[%emt 0:05:07][%cal Oc8h3] ( -> ...Qh3!)} 16. Ra3 {[%emt 0:05:41] Against Qh3} (16. Bxa8 $2 Qh3 17. Re1 Qxh2+ 18. Kf1 Qh1#) (16. Kg2 $1 $14) 16... Nxb5 $17 {[%emt 0:00:59]} 17. Rg3 {[%emt 0:08:30]} c6 {[%emt 0:01:51]} 18. Ba2 {[%emt 0:00:19][%cal Od2d4]} Bxg3 {[%emt 0:08:26]} 19. fxg3 {[%emt 0:00:05]} f6 {[%emt 0:00:12]} 20. c3 {[%emt 0:04:47][%cal Bc2c3,Bc3c4][%mdl 32]} d5 $2 {[%emt 0:06:47]} (20... Qd7 $17 {keeps the pressure on. ...Rb8 is the strong threat.} 21. d3 Ke8) 21. d4 $1 $16 {[%emt 0:02:29]} exd4 {[%emt 0:00:48] Threatens to win with ...Qe6.} 22. e5 {[%emt 0:06:25][%cal Be4e5,Be5f6,Bf6f7][%mdl 32]} h5 {[%emt 0:09:20] White must now prevent ...Qg4.} 23. c4 {[%emt 0:05:05]} Nc7 $2 {[%emt 0:07:24][%mdl 8192]} (23... Qg4 $1 $14 24. Qd2 h4 25. exf6 hxg3 26. Qb4+ Kg8 27. f7+ Kh7 28. Bb1+ g6) 24. Qxd4 {[%emt 0:01:30]} Ne6 {[%emt 0:01:52]} 25. Qh4 {[%emt 0:00:07]} (25. Qd3 $18) 25... Rb8 {[%emt 0:06:32][%cal Of6f5]} 26. exf6 {[%emt 0:03:13]} g5 {[%emt 0:00:14]} 27. Bxg5 {[%emt 0:01:12] And now Bf4 would win. White is more active.} Rxb2 $2 {[%emt 0:00:50][%mdl 8192] [#] White stays focused until the end.} ({Better is} 27... Qc7 $14) 28. f7 $1 $18 {[%emt 0:03:53]} Qb7 {[%emt 0:04:21] [#] Against Be7+} (28... Rxa2 29. Be7+ Kg7 30. cxd5 Qb8 31. dxe6 Qb6+ 32. Kh1 Rf2 33. Bf6+ Kf8 34. Rxf2) (28... Nxg5 $2 {[#]} 29. Qd4 $1 Ke7 30. Qxb2 $18) (28... Qc7 29. Be3) 29. Be3 $1 {[%emt 0:01:30] Qf6 would kill now. The board is on fire.} Qe7 {[%emt 0:01:29]} (29... Rxa2 {gets mated.} 30. Qf6) 30. Qxe7+ {[%emt 0:00:39]} Kxe7 {[%emt 0:00:02]} 31. cxd5 {[%emt 0:00:10]} cxd5 {[%emt 0:00:44]} (31... Re2 {was necessary.}) 32. Bxd5 {[%emt 0:00:06]} Rf8 {[%emt 0:00:57]} 33. Bc1 {[%emt 0:00:34] This bishop pair is nice.} Rb6 {[%emt 0:02:14]} (33... Rc2 $142 34. Ba3+ Nc5) 34. Ba3+ {[%emt 0:00:27][%mdl 64] Skewer} Rd6 {[%emt 0:00:17]} 35. Re1 {[%emt 0:00:10] White wants to mate with Rxe6+.} Kd7 {[%emt 0:03:47]} 36. Bxd6 {[%emt 0:00:07] White mates.} Kxd6 {[%emt 0:00:16]} 37. Bxe6 {[%emt 0:00:04] KRB-KR} Ke7 {[%emt 0:00:28]} 38. Bc4+ {[%emt 0:00:20]} Kf6 {[%emt 0:00:17]} 39. Re8 {[%emt 0:01:34]} Kg7 {[%emt 0:00:08]} 40. Re5 {[%emt 0:00:50]} Kg6 {[%emt 0:01:19]} 41. h4 {[%emt 0:30:51]} Rc8 {[%emt 0:05:20] [#]} 42. Re8 $1 {[%emt 0:00:00] Weighted Error Value: White=0.35/Black=0.65} 1-0

[Event "Mitropa Cup Women 2022"]
[Site "Corte"]
[Date "2022.05.03"]
[Round "4.3"]
[White "Mayrhuber, Nikola"]
[Black "Sedina, Elena"]
[Result "1-0"]
[ECO "D78"]
[WhiteElo "2110"]
[BlackElo "2258"]
[Annotator "TA"]
[PlyCount "61"]
[EventDate "2022.04.30"]
[EventType "team-tourn"]
[EventCountry "FRA"]
[SourceTitle "playchess.com"]
[Source "ChessBase"]
[SourceQuality "1"]
[BlackTeam "Italy"]
[BlackTeamCountry "ITA"]
[TimeControl "40/5400+30:1800+30"]

{[%evp 15,61,-29,-16,-15,-7,-13,0,-21,-26,-27,24,28,120,119,156,142,169,115,108,123,123,121,108,115,116,111,109,18,112,103,472,444,505,448,403,389,532,494,576,575,559,540,589,577,720,697,29980,2699]} 1. d4 {[%emt 0:00:03]} d5 {[%emt 0:00:07]} 2. c4 {[%emt 0:00:05]} c6 {[%emt 0:00:04]} 3. Nf3 {[%emt 0:00:05]} Nf6 {[%emt 0:00:27]} 4. Nc3 {[%emt 0:00:30]} dxc4 {[%emt 0:01:14]} 5. g3 {[%emt 0:00:23]} g6 {[%emt 0:03:01]} 6. Bg2 {[%emt 0:00:16]} Bg7 {[%emt 0:00:55]} 7. O-O {[%emt 0:00:15]} O-O {[%emt 0:00:51]} 8. e4 {[%emt 0:00:21]} b5 {[%emt 0:04:12]} 9. Qe2 {[%emt 0:00:31] The modern move. D78: Fianchetto Grünfeld: 6 0-0 c6.} Na6 {[%emt 0:14:58] [#]} 10. Rd1 $146 {[%emt 0:00:43]} ({Predecessor:} 10. a4 b4 11. Nb1 Nc7 12. Bf4 a5 13. Qxc4 Ba6 14. Qxc6 Bxf1 15. Bxc7 Qc8 16. Bxf1 {1-0 (40) Morozli,G (1652)-Krejcok,T (1561) Kouty nad Desnou 2015}) 10... Bg4 {[%emt 0:25:32][%cal Oe7e5]} 11. h3 {[%emt 0:01:12] The position is equal.} Bxf3 {[%emt 0:00:11]} 12. Bxf3 {[%emt 0:00:07]} Nc7 {[%emt 0:01:16]} (12... Nb4 $142) 13. a4 {[%emt 0:21:40]} e6 {[%emt 0:06:42] [#]} (13... a6 $11) 14. Bg5 $1 $16 {[%emt 0:09:02] Black must now prevent e5.} Qd7 {[%emt 0:14:00]} 15. axb5 {[%emt 0:08:06]} Nxb5 {[%emt 0:08:12]} 16. Nxb5 {[%emt 0:13:46]} (16. Qxc4 $18 {aiming for Bxf6.} Nxc3 17. bxc3 (17. Qxc3 Rab8 $16)) 16... cxb5 {[%emt 0:00:05]} 17. Bxf6 {[%emt 0:00:08]} Bxf6 {[%emt 0:00:04]} 18. e5 {[%emt 0:00:08]} Be7 {[%emt 0:01:01]} 19. Bxa8 {[%emt 0:01:47]} Rxa8 {[%emt 0:00:01]} 20. Qe4 {[%emt 0:00:34]} Rd8 {[%emt 0:00:35]} 21. h4 {[%emt 0:05:19] White is more active.} (21. Kg2 $16) 21... Kg7 {[%emt 0:14:28]} (21... Bb4 $11) 22. h5 $36 {[%emt 0:02:02][%mdl 2048] Black is under strong pressure.} h6 $2 {[%emt 0:02:22][%mdl 8192] Loses the game.} (22... gxh5 $16 {is a better chance.} 23. Ra5 Qd5) 23. hxg6 $18 {[%emt 0:01:14]} fxg6 {[%emt 0:00:01]} 24. Ra6 {[%emt 0:01:14][%cal Od4d5,Ba1a6,Ba6c6,Bc6e6,Be6f6,Bf6g6][%mdl 32] [#] And now d5! would win.} Bc5 {[%emt 0:01:15]} 25. Rc6 {[%emt 0:20:42]} Qb7 {[%emt 0:00:10][%cal Od8d4]} 26. Qf3 {[%emt 0:07:31] White wants to mate with Qf6+.} Rf8 {[%emt 0:00:05] Against Qf6+} 27. Qg2 {[%emt 0:00:10]} Bb6 {[%emt 0:01:37]} 28. Rxe6 {[%emt 0:00:25]} Qd7 {[%emt 0:00:26]} 29. Qc6 {[%emt 0:01:37]} Qf7 {[%emt 0:00:34]} 30. Rf6 {[%emt 0:00:45]} Qe7 {[%emt 0:00:14]} 31. Rxg6+ {[%emt 0:00:17] Weighted Error Value: White=0.13 (very precise) /Black=0.91} 1-0

[Event "Mitropa Cup Women 2022"]
[Site "Corte"]
[Date "2022.05.03"]
[Round "4.3"]
[White "Sankova, Stella"]
[Black "Sikorova, Olga"]
[Result "1-0"]
[ECO "B43"]
[WhiteElo "2066"]
[BlackElo "2179"]
[Annotator "TA"]
[PlyCount "73"]
[EventDate "2022.04.30"]
[EventType "team-tourn"]
[EventCountry "FRA"]
[SourceTitle "playchess.com"]
[Source "ChessBase"]
[SourceQuality "1"]
[TimeControl "40/5400+30:1800+30"]

{[%evp 14,73,0,-27,-18,-39,-22,-29,-16,-22,-17,-14,-17,-27,-24,-104,-112,-97,-86,-142,-146,-144,-148,-149,-146,-166,-154,-172,-178,-171,-160,-168,-164,-219,-156,-135,-113,-129,-109,-112,-121,-155,-154,-275,-171,-161,-158,-531,-569,-583,-578,-617,-440,-432,-281,-277,0,0,429,428,29997,29998]} 1. e4 {[%emt 0:00:03]} c5 {[%emt 0:00:07]} 2. Nf3 {[%emt 0:00:10]} e6 {[%emt 0:00:08]} 3. d4 {[%emt 0:00:04]} cxd4 {[%emt 0:00:10]} 4. Nxd4 {[%emt 0:00:05]} a6 {[%emt 0:00:07]} 5. Nc3 {[%emt 0:00:44]} b5 {[%emt 0:00:22]} 6. a3 {[%emt 0:04:41]} Qc7 {[%emt 0:03:55]} 7. Be3 {[%emt 0:02:54]} Bb7 {[%emt 0:00:52]} 8. Be2 {[%emt 0:00:59]} Nf6 {[%emt 0:00:46] B43: Sicilian: Kan Variation: 5 Nc3.} 9. Bf3 {[%emt 0:00:17][%cal Oe4e5]} Nc6 {[%emt 0:09:33]} 10. Nxc6 {[%emt 0:04:42]} Bxc6 {[%emt 0:01:22] Black has an edge.} 11. Qd4 {[%emt 0:09:41]} Bd6 {[%emt 0:14:40] [#] Prevents e5.} 12. Rd1 $146 {[%emt 0:04:09]} ({Predecessor:} 12. h4 Be5 13. Qd2 Rc8 14. Bd4 d6 15. Bxe5 dxe5 16. Rd1 a5 17. Qe2 Qb7 18. b4 axb4 19. axb4 {0-1 (40) Vazquez,F-Duarte,L (2361) Trevelin 2014}) 12... Be5 {[%emt 0:05:53]} 13. Qd3 {[%emt 0:00:20]} O-O {[%emt 0:05:04]} 14. Bc5 {[%emt 0:04:14]} (14. Bd4 $1 $11) 14... Rfc8 $17 {[%emt 0:10:41] Hoping for ...Bxc3+.} 15. Bd4 {[%emt 0:07:04]} a5 {[%emt 0:04:34]} 16. Nxb5 {[%emt 0:06:56]} (16. Bxe5 $142 Qxe5 17. Qd4 Qxd4 18. Rxd4) 16... Bxb5 {[%emt 0:00:23][%mdl 64] Discovered Attack} 17. Qxb5 {[%emt 0:00:08]} Bxd4 {[%emt 0:00:32]} 18. Rxd4 {[%emt 0:00:01] [#]} Rab8 $1 {[%emt 0:00:58]} ({Don't play} 18... Qxc2 $6 19. O-O $11) 19. Qg5 {[%emt 0:00:55]} Rxb2 {[%emt 0:05:27]} (19... Qxc2 20. e5 Nd5 21. O-O $15) 20. O-O e5 {[%emt 0:08:07]} ({Weaker is} 20... Rxc2 21. e5 Rc5 22. Re1 $17) (20... Qxc2 21. Qxa5 d5 22. exd5 $11) 21. Rd2 {[%emt 0:01:37]} h6 22. Qf5 {[%emt 0:08:37]} Qb8 {[%emt 0:04:47]} 23. h4 (23. Bd1 $142) 23... Rc6 {[%emt 0:05:50]} ({Worse is} 23... Rbxc2 24. Rxc2 Rxc2 25. g4) 24. Bd1 {[%emt 0:04:58]} Qe8 25. Re1 {[%emt 0:06:51]} g6 {[%emt 0:09:38]} 26. Qf3 {[%emt 0:00:35]} Qe7 {[%emt 0:00:30]} 27. g4 Rc4 {[%emt 0:05:25]} 28. Qg2 {[%emt 0:11:08]} (28. Kf1 $17) 28... Ra2 {[%emt 0:01:29]} 29. Rd3 {[%emt 0:09:13]} Rxa3 {Threatens to win with ...Ra1.} 30. Ree3 $2 {[%emt 0:04:15]} (30. g5 $17 hxg5 31. h5) 30... Rxd3 $19 {[%emt 0:00:50]} 31. cxd3 {[%emt 0:00:12]} Rc1 {[%emt 0:00:11]} 32. Qf3 {[%emt 0:00:23]} Qe6 {[%emt 0:00:51] ...Nxg4 is the strong threat.} 33. Kg2 g5 {[%emt 0:00:50]} 34. hxg5 {[%emt 0:01:05] [#]} hxg5 {[%emt 0:00:01]} (34... Nh7 $1 $19 {[%cal Rh7g5]} 35. g6 Qxg6) 35. Bb3 $1 $11 {[%emt 0:01:02]} Qd6 {[%emt 0:03:20][%mdl 8192]} (35... Qxb3 $11 {and Black is okay.} 36. Qxf6 Qd1 37. Qxg5+ Kf8) 36. Qf5 $18 {[%emt 0:00:43] Qg6+ would kill now.} Rc3 {[%emt 0:00:29]} (36... Kf8 $18 37. Bc4 Qb6 38. Qxg5 Nh7 39. Qxe5 Qf6 40. Qxa5 Kg7) 37. Qg6+ {[%emt 0:01:12] Never resign too early!  Weighted Error Value: White=0.39/Black=0.81} 1-0

[Event "Mitropa Cup Women 2022"]
[Site "Corte"]
[Date "2022.05.03"]
[Round "4.4"]
[White "Koubova, Anna Marie"]
[Black "Sevcikova, Lucia"]
[Result "0-1"]
[ECO "A09"]
[WhiteElo "2152"]
[BlackElo "2030"]
[Annotator "TA"]
[PlyCount "78"]
[EventDate "2022.04.30"]
[EventType "team-tourn"]
[EventCountry "FRA"]
[SourceTitle "playchess.com"]
[Source "ChessBase"]
[SourceQuality "1"]
[TimeControl "40/5400+30:1800+30"]

{[%evp 11,78,6,0,-4,0,2,29,0,41,46,54,-7,30,22,39,9,15,-37,-7,-4,0,-47,-51,-44,-49,-45,-18,-45,-37,-37,-38,-250,-258,-268,-281,-263,-268,-273,-269,-256,-245,-395,-384,-364,-294,-389,-360,-642,-804,-781,-799,-829,-780,-746,-735,-809,-798,-774,-759,-825,-774,-29995,-29996,-29996,-29997,-29997,-29998,-29998,-29999]} 1. Nf3 {[%emt 0:00:09]} d5 {[%emt 0:00:23]} 2. c4 {[%emt 0:00:25]} d4 {[%emt 0:00:56]} 3. e3 {[%emt 0:00:31]} c5 {[%emt 0:00:35]} 4. b4 {[%emt 0:00:36]} dxe3 {[%emt 0:06:30]} 5. fxe3 {[%emt 0:00:19]} cxb4 {[%emt 0:00:10]} 6. d4 {[%emt 0:01:34]} e6 {[%emt 0:03:16]} 7. Bd3 {[%emt 0:01:20] A09: Réti Opening: 1 Nf3 d5 2 c4.} Nc6 {[%emt 0:04:43]} 8. O-O {[%emt 0:01:41]} Nf6 {[%emt 0:03:47][%cal Oe6e5]} 9. Bb2 {[%emt 0:09:46][%mdl 1024] White has compensation. White has an edge.} Be7 {[%emt 0:09:55]} 10. e4 {[%emt 0:00:54]} O-O {[%emt 0:03:35] [#]} 11. Bc2 $146 {[%emt 0:11:27]} (11. e5 $14) ({Predecessor:} 11. e5 Ne8 12. d5 Bc5+ 13. Kh1 Ne7 14. d6 Nf5 15. Qd2 f6 16. Bxf5 {1-0 (16) Obolenskikh,D (2446)-Kiselev,S (2434) Irkutsk 2008}) 11... g6 {[%emt 0:06:57]} (11... e5 {looks sharper.} 12. d5 Qb6+ 13. Kh1 Ng4) 12. e5 {[%emt 0:03:25]} Ne8 {[%emt 0:06:18]} 13. Kh1 {[%emt 0:07:00]} Na5 {[%emt 0:04:03]} 14. Qd3 {[%emt 0:03:08]} (14. Nbd2 $11) 14... Nc7 {[%emt 0:03:46][%cal Ob7b5]} 15. Nbd2 {[%emt 0:14:00]} b6 {[%emt 0:06:37][%cal Bb7b6,Bb6a5][%mdl 32]} 16. Nb3 {[%emt 0:01:16]} (16. Qe2 $11 {deserves consideration.}) 16... Ba6 {[%emt 0:06:47]} (16... Nxc4 {feels hotter.} 17. Qxc4 Ba6 18. Qc6 Bxf1 19. Rxf1 Nd5) 17. Nxa5 {[%emt 0:02:42]} bxa5 {[%emt 0:00:06]} 18. Bb3 {[%emt 0:01:31]} Qd7 {[%emt 0:04:41] ...a4 is the strong threat.} 19. Qc2 {[%emt 0:00:35]} Rac8 {[%emt 0:01:41][%cal Oc7d5]} 20. Ba4 {[%emt 0:02:28]} Qd8 {[%emt 0:00:19][%cal Oc7d5]} 21. Rac1 $2 {[%emt 0:03:40] [#] White does not recover from this.} ({White should try} 21. Rf2 $15) 21... Nd5 $1 $19 {[%emt 0:02:46][%cal Bc7d5,Bd5b6,Bb6a4][%mdl 544]} 22. Qb3 {[%emt 0:02:16]} Nb6 {[%emt 0:00:47][%cal Ra6c4]} 23. c5 {[%emt 0:07:27]} Bxf1 {[%emt 0:02:03]} 24. Rxf1 {[%emt 0:02:20]} Nxa4 {[%emt 0:01:35]} 25. Qxa4 {[%emt 0:00:08]} Qc7 {[%emt 0:03:00]} 26. Nd2 {[%emt 0:00:52]} (26. Bc1 {was necessary.}) 26... f6 {[%emt 0:02:50]} 27. exf6 {[%emt 0:11:32]} Rxf6 {[%emt 0:00:55]} 28. Rxf6 {[%emt 0:01:28]} Bxf6 {[%emt 0:00:07]} 29. Ne4 $2 {[%emt 0:00:19]} (29. Nf3) 29... Qf4 {[%emt 0:05:01][%cal Rf4f1] [#]} 30. Nxf6+ {[%emt 0:00:51]} Qxf6 {[%emt 0:00:03][%cal Rf6f1][%mdl 4096] Endgame KQR-KQB} 31. h3 {[%emt 0:03:06]} Qf5 {[%emt 0:03:38]} 32. Qd7 {[%emt 0:00:46]} Rf8 {[%emt 0:01:09] Threatens to win with ...Qb1+.} 33. c6 {[%emt 0:01:34]} Qd5 {[%emt 0:02:39] White must now prevent ...Qxd7.} ({Inferior is} 33... Qb1+ 34. Kh2 Qxa2 35. c7 Qxb2 36. Qxe6+ Kg7 37. Qe7+ Kg8 38. Qe6+ Kh8 39. Qe5+ Kg8 40. Qe6+ $11) 34. Qe7 {[%emt 0:00:35]} Rf7 {[%emt 0:02:32]} ({Stronger than} 34... Qxa2 35. Bc1 Rf1+ 36. Kh2 $11) 35. Qe8+ {[%emt 0:03:52]} Kg7 {[%emt 0:00:42] ( -> ...Rf1+)} 36. Bc1 {[%emt 0:01:02]} Rf1+ {[%emt 0:00:27] Black mates.} 37. Kh2 {[%emt 0:00:04]} Qd6+ {[%emt 0:00:07]} 38. g3 {[%emt 0:00:07]} Rf2+ {[%emt 0:00:08]} 39. Kh1 {[%emt 0:00:22]} Qd5+ {[%emt 0:00:03] Weighted Error Value: White=0.43/Black=0.11 (very precise)} 0-1

[Event "Mitropa Cup Women 2022"]
[Site "Corte"]
[Date "2022.05.03"]
[Round "4.4"]
[White "Karacsonyi, Kata"]
[Black "Vujnovic, Patricija"]
[Result "1/2-1/2"]
[ECO "B84"]
[WhiteElo "2130"]
[BlackElo "2123"]
[Annotator "TA"]
[PlyCount "59"]
[EventDate "2022.04.30"]
[EventType "team-tourn"]
[EventCountry "FRA"]
[SourceTitle "playchess.com"]
[Source "ChessBase"]
[SourceQuality "1"]
[WhiteTeam "Hungary"]
[WhiteTeamCountry "HUN"]
[TimeControl "40/5400+30:1800+30"]

{[%evp 22,59,24,30,33,0,-12,0,1,-35,-43,-60,-51,-77,-7,-7,27,30,27,28,18,12,30,0,0,-15,-10,-18,0,0,0,-16,0,-12,0,-26,0,-15,0,-27]} 1. e4 {[%emt 0:00:04]} c5 {[%emt 0:00:02]} 2. Nf3 {[%emt 0:00:10]} e6 {[%emt 0:00:14]} 3. d4 {[%emt 0:00:22]} cxd4 {[%emt 0:00:06]} 4. Nxd4 {[%emt 0:00:06]} a6 {[%emt 0:00:44]} 5. Nc3 {[%emt 0:00:51]} Qc7 {[%emt 0:01:12]} 6. a3 {[%emt 0:01:40]} Nf6 {[%emt 0:00:42]} 7. Be2 {[%emt 0:01:13]} d6 {[%emt 0:02:48]} 8. O-O {[%emt 0:01:19]} b5 {[%emt 0:01:50]} 9. f4 {[%emt 0:03:23]} Bb7 10. Bf3 {[%emt 0:01:51]} Nbd7 {[%emt 0:02:15][%cal Bb8d7,Bd7b6,Bb6c4][%mdl 32]} 11. Kh1 {[%emt 0:06:40]} Be7 {[%emt 0:00:36]} 12. Qe2 {[%emt 0:14:00][%cal Oe4e5]} O-O {[%emt 0:07:38] B84: Sicilian Scheveningen: 6 Be2 a6, lines without early Be3.} 13. Bd2 {[%emt 0:07:44]} (13. g4 $5 {[%cal Rg4g5]}) 13... Rac8 {[%emt 0:01:40]} 14. Rae1 {[%emt 0:05:24]} Nb6 {[%emt 0:07:14]} 15. Qf2 {[%emt 0:03:27]} Nc4 {[%emt 0:04:07]} 16. Bc1 {[%emt 0:00:53] [#]} Nxa3 $1 {[%emt 0:16:29]} 17. e5 {[%emt 0:19:46] [#]} (17. Qg3 Ne8) 17... dxe5 $146 {[%emt 0:00:54]} ({Predecessor:} 17... Ne8 18. Qg3 Bxf3 19. Rxf3 Nc4 20. b3 dxe5 21. fxe5 Rd8 22. Ndxb5 axb5 23. bxc4 Qxc4 {½-½ (57) Zozulia,A (2381)-Docx,S (2330) Antwerp 2011}) 18. fxe5 $11 {[%emt 0:04:53] Threatens to win with Bg5.} Nd7 {[%emt 0:04:39]} (18... Ne8 $5) 19. Bxb7 {[%emt 0:02:37]} Qxb7 {[%emt 0:00:04]} 20. Qg3 $1 {[%emt 0:00:26]} Nc4 $1 {[%emt 0:04:08]} 21. Bh6 $1 {[%emt 0:00:46][%csl Gh6][%cal Rg3g7]} g6 {[%emt 0:00:07][%cal Oc4b2]} 22. Bxf8 {[%emt 0:01:12]} Rxf8 {[%emt 0:05:18]} 23. Ne4 {[%emt 0:09:29]} Ncxe5 {[%emt 0:03:36]} 24. Ng5 {[%emt 0:01:37]} Qd5 {[%emt 0:02:09]} 25. Rd1 {[%emt 0:02:46][%cal Od4e6] Black must now prevent Ndxe6!} Qb7 {[%emt 0:10:39]} 26. Rde1 {[%emt 0:03:23]} Qd5 {[%emt 0:01:22]} 27. Rd1 {[%emt 0:00:30][%cal Od4e6] And now Ndxe6! would win.} Qb7 {[%emt 0:00:03]} 28. Rde1 {[%emt 0:02:32]} Qd5 {[%emt 0:08:44]} 29. Rd1 {[%emt 0:00:08][%cal Od4e6] Strongly threatening Ndxe6!} Qb7 {[%emt 0:01:08]} 30. Rde1 {[%emt 0:00:44] Weighted Error Value: White=0.09 (flawless) /Black=0.11 (very precise)} 1/2-1/2

[Event "Mitropa Cup Women 2022"]
[Site "Corte"]
[Date "2022.05.03"]
[Round "4.4"]
[White "Gabbani, Sara"]
[Black "Froewis, Annika"]
[Result "1/2-1/2"]
[ECO "B40"]
[WhiteElo "1831"]
[BlackElo "2085"]
[Annotator "TA"]
[PlyCount "74"]
[EventDate "2022.04.30"]
[EventType "team-tourn"]
[EventCountry "FRA"]
[SourceTitle "playchess.com"]
[Source "ChessBase"]
[SourceQuality "1"]
[WhiteTeam "Italy"]
[WhiteTeamCountry "ITA"]
[TimeControl "40/5400+30:1800+30"]

{[%evp 13,74,17,16,13,46,4,25,6,3,-6,14,11,10,7,30,18,75,58,71,66,72,8,0,0,65,29,75,59,50,61,68,41,45,33,45,0,77,0,0,0,0,-34,-22,-57,-6,-6,-4,-9,-12,-20,0,-9,-21,-23,0,0,0,-35,0,-13,0,-34,0]} 1. e4 {[%emt 0:00:03]} c5 {[%emt 0:00:05]} 2. Nf3 {[%emt 0:00:12]} e6 {[%emt 0:00:05]} 3. d4 {[%emt 0:00:23]} cxd4 {[%emt 0:00:05]} 4. Nxd4 {[%emt 0:00:05]} Nf6 {[%emt 0:00:07]} 5. Nc3 {[%emt 0:01:16]} Nc6 {[%emt 0:00:26]} 6. g3 {[%emt 0:03:05]} Bb4 {[%emt 0:04:54]} 7. Bg2 {[%emt 0:00:49]} O-O $1 {[%emt 0:03:51][%mdl 4] is more profitable than 7...d5 at the moment.} 8. O-O {[%emt 0:00:26] B45: Sicilian Four Knights.} a6 {[%emt 0:06:56]} 9. Nce2 {[%emt 0:06:21]} Qc7 {[%emt 0:06:31]} 10. c3 {[%emt 0:02:33] White has an edge.} Be7 {[%emt 0:02:03]} 11. h3 {[%emt 0:09:24] [#]} h6 $146 {[%emt 0:05:58]} ({Predecessor:} 11... d5 12. exd5 Nxd5 13. Nf4 Nxf4 14. Bxf4 e5 15. Nxc6 bxc6 16. Be3 Be6 17. Qc2 f5 {1-0 (32) Jablonski,M-Czechowski,P Bydgoszcz 2001}) 12. f4 {[%emt 0:10:59]} d5 {[%emt 0:07:26]} 13. e5 {[%emt 0:01:02]} Nh7 {[%emt 0:03:41]} 14. Be3 {[%emt 0:05:03]} (14. Qc2 {with more complications.} f6 15. Qg6 Rf7 16. exf6 Nxf6 17. Be3) 14... Kh8 {[%emt 0:04:36]} (14... f6 $11) 15. Qc2 {[%emt 0:06:31]} Bd7 {[%emt 0:04:42]} 16. Rad1 {[%emt 0:07:12]} Rac8 {[%emt 0:07:57]} 17. Qb1 {[%emt 0:11:26] White is more active.} ({White should try} 17. Kh2 $16) 17... f6 $11 {[%emt 0:06:14]} 18. exf6 {[%emt 0:00:53]} Bxf6 {[%emt 0:00:27]} (18... Nxf6 $11 19. g4 Bc5) 19. g4 {[%emt 0:10:26]} Na5 {[%emt 0:02:44]} (19... Nxd4 $11 20. Nxd4 Be7) 20. Kh1 {[%emt 0:05:03]} Nc4 {[%emt 0:00:45]} 21. Bg1 {[%emt 0:00:10]} b5 {[%emt 0:03:30]} 22. Qc1 {[%emt 0:01:24]} a5 {[%emt 0:05:52]} 23. Bh2 {[%emt 0:02:48]} (23. Qc2 {seems wilder.} b4 24. f5 e5 25. Ne6) 23... Qb6 {[%emt 0:03:01]} 24. Bg1 {[%emt 0:00:35] [#] b3 is the strong threat.} Qa6 {[%emt 0:01:08]} (24... Qc7 $11) 25. Qb1 {[%emt 0:02:05]} (25. Nf3 $16) 25... b4 {[%emt 0:01:11]} 26. cxb4 {[%emt 0:00:36]} axb4 {[%emt 0:00:01]} 27. b3 {[%emt 0:00:35]} Nd6 {[%emt 0:01:16]} 28. Rc1 {[%emt 0:01:20]} Be7 {[%emt 0:04:59]} (28... Ne4 $15 29. Bxe4 dxe4) 29. Rxc8 {[%emt 0:02:39]} Rxc8 {[%emt 0:00:01]} 30. Rc1 {[%emt 0:00:41]} Nf6 {[%emt 0:03:06]} 31. Rxc8+ {[%emt 0:00:22]} Qxc8 {[%emt 0:02:47]} 32. Ng3 {[%emt 0:00:36]} Nb5 {[%emt 0:02:36]} 33. Nge2 {[%emt 0:01:38]} Nd6 {[%emt 0:02:30]} 34. Ng3 {[%emt 0:00:22]} Nb5 {[%emt 0:00:56]} 35. Nge2 {[%emt 0:00:19]} Nd6 {[%emt 0:01:43]} 36. Ng3 {[%emt 0:01:36]} Nb5 {[%emt 0:00:26]} 37. Nge2 {[%emt 0:01:42]} Nd6 {[%emt 0:00:07] Weighted Error Value: White=0.15 (very precise) /Black=0.23 (precise)} 1/2-1/2